bitfinex/quotes_BTCUSD_20250320
["timestamp","ask_amount","ask_price","bid_price","bid_amount"]
[1742435720848,0.000339,86088.0,86087.0,0.0021695]
[1742435726425,0.00179117,86088.0,86087.0,0.0021695]
[1742435726985,0.48764717,86088.0,86087.0,0.0021695]
[1742435727247,0.92095185,86088.0,86087.0,0.0011695]
[1742435728066,0.92095185,86088.0,86087.0,0.0021695]
[1742435728270,0.92095185,86088.0,86087.0,0.0011695]
[1742435728648,0.92095185,86088.0,86087.0,0.0001695]
[1742435728882,0.92295185,86088.0,86087.0,0.0001695]
[1742435730951,0.92595185,86088.0,86087.0,0.0001695]
[1742435733142,0.72847985,86088.0,86087.0,0.0001695]
[1742435733371,0.74009585,86088.0,86087.0,0.0001695]
[1742435734504,0.72847985,86088.0,86087.0,0.0001695]
[1742435740607,0.74009585,86088.0,86087.0,0.0001695]
[1742435745301,0.74509585,86088.0,86087.0,0.0001695]
[1742435745737,0.84569585,86088.0,86087.0,0.0001695]
[1742435745971,0.89319585,86088.0,86087.0,0.0001695]
[1742435746884,0.89019585,86088.0,86087.0,0.0001695]
[1742435747027,0.88819585,86088.0,86087.0,0.0001695]
[1742435747237,0.91761112,86088.0,86087.0,0.0001695]
[1742435747443,0.92361112,86088.0,86087.0,0.0001695]
[1742435747846,0.90019585,86088.0,86087.0,0.0001695]
[1742435752915,1.03339585,86088.0,86087.0,0.0001695]
[1742435760144,1.15589585,86088.0,86087.0,0.0001695]
[1742435760344,1.03339585,86088.0,86087.0,0.0001695]
[1742435764485,1.48869585,86088.0,86087.0,0.0001695]
[1742435765709,1.45869585,86088.0,86087.0,0.0001695]
[1742435766127,1.33049585,86088.0,86087.0,0.0001695]
[1742435766363,1.45869585,86088.0,86087.0,0.0001695]
[1742435766880,1.31387985,86088.0,86087.0,0.0001695]
[1742435767091,1.44707985,86088.0,86087.0,0.0001695]
[1742435767287,1.14707985,86088.0,86087.0,0.0001695]
[1742435767794,0.999339,86088.0,86087.0,0.0001695]
[1742435768088,0.999339,86088.0,86087.0,0.1242695]
[1742435768089,0.414939,86088.0,86087.0,0.1242695]
[1742435768305,0.419939,86088.0,86087.0,0.1242695]
[1742435768951,0.005339,86088.0,86087.0,0.1242695]
[1742435769196,0.000339,86088.0,86087.0,0.1242695]
[1742435769401,0.006339,86088.0,86087.0,0.3101275]
[1742435769609,0.006339,86088.0,86087.0,0.1242695]
[1742435770501,0.002339,86088.0,86087.0,0.1242695]
[1742435771116,0.003339,86088.0,86087.0,0.1242695]
[1742435774072,0.003339,86088.0,86087.0,0.3217435]
[1742435774842,0.002339,86088.0,86087.0,0.1242695]
[1742435775319,0.000339,86088.0,86087.0,0.3101275]
[1742435775527,0.001339,86088.0,86087.0,0.3217435]
[1742435775814,0.001339,86088.0,86087.0,0.3101275]
[1742435775994,0.000339,86088.0,86087.0,0.3101275]
[1742435776368,0.000339,86088.0,86087.0,0.3217435]
[1742435777609,0.000339,86088.0,86087.0,0.3101275]
[1742435779779,0.000339,86088.0,86087.0,0.1242695]
[1742435781304,0.000339,86088.0,86087.0,0.1358855]
[1742435781927,0.000339,86088.0,86087.0,0.1368855]
[1742435782099,0.001339,86088.0,86087.0,0.1368855]
[1742435782320,0.000339,86088.0,86087.0,0.1368855]
[1742435782666,0.000339,86088.0,86087.0,0.1242695]
[1742435782867,0.000339,86088.0,86087.0,0.1262695]
[1742435784439,0.000339,86088.0,86087.0,0.2594295]
[1742435787269,0.000339,86088.0,86087.0,0.2710455]
[1742435787933,0.000339,86088.0,86087.0,0.2594295]
[1742435790621,0.000339,86088.0,86087.0,0.1262695]
[1742435790828,0.000339,86088.0,86087.0,0.0021695]
[1742435791048,0.00352443,86093.0,86087.0,0.0021695]
[1742435791250,0.01454085,86098.0,86087.0,0.0021695]
[1742435791402,0.01454085,86096.0,86087.0,0.0021695]
[1742435791643,0.0008969,86095.0,86087.0,0.0001695]
[1742435792035,0.4094969,86095.0,86087.0,0.0021695]
[1742435792236,0.4086,86095.0,86087.0,0.0021695]
[1742435792442,0.0008969,86094.0,86087.0,0.0001695]
[1742435792957,0.01277387,86094.0,86087.0,0.0001695]
[1742435793159,0.002,86093.0,86087.0,0.0001695]
[1742435793366,0.0008969,86092.0,86087.0,0.0001695]
[1742435794330,0.0008969,86094.0,86087.0,0.0001695]
[1742435794519,0.01232438,86094.0,86087.0,0.0001695]
[1742435794707,0.0018969,86094.0,86087.0,0.0001695]
[1742435795359,0.002,86093.0,86087.0,0.0001695]
[1742435795561,0.0008969,86092.0,86087.0,0.0001695]
[1742435796633,0.0018969,86093.0,86087.0,0.0001695]
[1742435796834,0.0038969,86093.0,86087.0,0.0001695]
[1742435797053,0.0018969,86093.0,86087.0,0.0001695]
[1742435797443,0.002,86092.0,86087.0,0.0001695]
[1742435797648,0.0008969,86091.0,86087.0,0.0001695]
[1742435798215,0.0028969,86092.0,86087.0,0.0001695]
[1742435798416,0.0008969,86091.0,86087.0,0.0001695]
[1742435799061,0.002,86093.0,86087.0,0.0001695]
[1742435799262,0.01255667,86094.0,86087.0,0.0001695]
[1742435799682,0.002,86092.0,86087.0,0.0001695]
[1742435799930,0.0008969,86091.0,86087.0,0.0001695]
[1742435800343,0.0028969,86091.0,86087.0,0.0001695]
[1742435800488,0.0008969,86091.0,86087.0,0.0001695]
[1742435800699,0.01236039,86094.0,86087.0,0.0001695]
[1742435801512,0.001,86093.0,86087.0,0.0001695]
[1742435801713,0.0008969,86092.0,86087.0,0.0001695]
[1742435801897,0.0028969,86092.0,86087.0,0.0001695]
[1742435802102,0.0008969,86092.0,86087.0,0.0001695]
[1742435802714,0.0008969,86093.0,86087.0,0.0001695]
[1742435803261,0.002,86092.0,86087.0,0.0001695]
[1742435803411,0.0008969,86091.0,86087.0,0.0001695]
[1742435805051,0.0008969,86092.0,86087.0,0.0001695]
[1742435805975,0.002,86091.0,86087.0,0.0001695]
[1742435806182,0.0008969,86090.0,86087.0,0.0001695]
[1742435806358,0.0008969,86093.0,86087.0,0.0001695]
[1742435806560,0.002,86092.0,86087.0,0.0001695]
[1742435806789,0.0008969,86091.0,86087.0,0.0001695]
[1742435808805,0.0008969,86093.0,86087.0,0.0001695]
[1742435809019,0.002,86091.0,86087.0,0.0001695]
[1742435809311,0.0008969,86090.0,86087.0,0.0001695]
[1742435810024,0.0028969,86093.0,86087.0,0.0001695]
[1742435811229,0.0038969,86093.0,86087.0,0.0001695]
[1742435811434,0.0018969,86093.0,86087.0,0.0001695]
[1742435811611,0.002,86090.0,86087.0,0.0001695]
[1742435812042,0.0018969,86093.0,86087.0,0.0001695]
[1742435812250,0.0008969,86092.0,86087.0,0.0001695]
[1742435812914,0.002,86090.0,86087.0,0.0001695]
[1742435813957,0.002,86090.0,86087.0,0.1860265]
[1742435814304,0.002,86090.0,86088.0,0.185854]
[1742435814451,0.002,86090.0,86087.0,0.1860265]
[1742435814729,0.002,86090.0,86088.0,0.0758]
[1742435814903,0.0010664,86093.0,86088.0,0.0758]
[1742435815489,0.002,86090.0,86088.0,0.0758]
[1742435815856,0.0001695,86093.0,86088.0,0.0758]
[1742435816072,0.002,86090.0,86088.0,0.0758]
[1742435817224,0.002,86090.0,86088.0,0.261654]
[1742435817909,0.0001695,86093.0,86088.0,0.261654]
[1742435818137,0.0030664,86093.0,86088.0,0.261654]
[1742435818407,0.0010664,86093.0,86088.0,0.0758]
[1742435818842,0.002,86090.0,86088.0,0.0758]
[1742435819115,0.0011695,86093.0,86088.0,0.0758]
[1742435819515,0.0031695,86093.0,86088.0,0.0758]
[1742435819737,0.0031695,86093.0,86089.0,0.185852]
[1742435820348,0.0011695,86093.0,86088.0,0.261654]
[1742435820634,0.0001695,86093.0,86088.0,0.261654]
[1742435820886,0.0010664,86093.0,86087.0,0.0001695]
[1742435821657,0.01454085,86089.0,86087.0,0.0001695]
[1742435821876,0.41025375,86088.0,86087.0,0.0001695]
[1742435822088,0.40935685,86088.0,86087.0,0.0001695]
[1742435823185,0.40935685,86088.0,86066.0,0.10436888]
[1742435823186,0.497519,86067.0,86066.0,0.10436888]
[1742435823318,0.92065985,86067.0,86066.0,0.10436888]
[1742435823513,0.72314085,86067.0,86066.0,0.10436888]
[1742435824304,0.72314085,86067.0,86050.0,0.0476]
[1742435824305,0.31454085,86066.0,86053.0,0.10436888]
[1742435824510,0.011619,86060.0,86053.0,0.10436888]
[1742435824719,0.51297275,86060.0,86053.0,0.10436888]
[1742435824933,0.51207585,86060.0,86053.0,0.10436888]
[1742435825970,0.51507585,86060.0,86053.0,0.10436888]
[1742435826170,0.92367585,86060.0,86053.0,0.10436888]
[1742435826430,0.92067585,86060.0,86053.0,0.10436888]
[1742435826638,0.92467585,86060.0,86053.0,0.10436888]
[1742435827208,0.92667585,86060.0,86053.0,0.10436888]
[1742435827739,0.92467585,86060.0,86053.0,0.10436888]
[1742435827950,0.92467585,86060.0,86036.0,0.0469]
[1742435828121,0.92767585,86060.0,86036.0,0.0469]
[1742435828975,0.41305985,86059.0,86033.0,0.0001695]
[1742435829821,0.42164327,86059.0,86033.0,0.0001695]
[1742435830022,0.83024327,86059.0,86033.0,0.0001695]
[1742435830197,0.82165985,86059.0,86033.0,0.0001695]
[1742435830403,0.82565985,86059.0,86033.0,0.0001695]
[1742435830925,0.82765985,86059.0,86033.0,0.0001695]
[1742435831364,0.85265985,86059.0,86033.0,0.0001695]
[1742435831772,0.82765985,86059.0,86033.0,0.0001695]
[1742435831902,0.85265985,86059.0,86033.0,0.0001695]
[1742435832101,0.85065985,86059.0,86033.0,0.0001695]
[1742435832311,0.85565985,86059.0,86033.0,0.0001695]
[1742435832513,0.86065985,86059.0,86033.0,0.0001695]
[1742435832710,0.91271884,86059.0,86033.0,0.0001695]
[1742435832940,0.85165985,86059.0,86033.0,0.0001695]
[1742435833520,0.02616385,86034.0,86033.0,0.0001695]
[1742435833720,0.43566075,86034.0,86033.0,0.0002113]
[1742435833839,0.43476385,86034.0,86033.0,0.0002113]
[1742435834782,0.42314085,86034.0,86033.0,0.0002113]
[1742435835184,0.43763204,86034.0,86033.0,0.0002113]
[1742435835792,0.44925504,86034.0,86033.0,0.0002113]
[1742435836310,0.45125504,86034.0,86033.0,0.0002113]
[1742435836448,0.75125504,86034.0,86033.0,0.0002113]
[1742435837926,0.73963204,86034.0,86033.0,0.0002113]
[1742435838148,0.75125504,86034.0,86033.0,0.0002113]
[1742435841583,0.72509119,86034.0,86033.0,0.0002113]
[1742435843859,0.72509119,86034.0,86033.0,0.0497113]
[1742435845727,0.72509119,86034.0,86033.0,0.0002113]
[1742435847108,0.93722704,86034.0,86033.0,0.0002113]
[1742435856414,1.07038704,86034.0,86033.0,0.0002113]
[1742435856618,1.14648704,86034.0,86033.0,0.0002113]
[1742435857676,1.14948704,86034.0,86033.0,0.0002113]
[1742435857926,1.07338704,86034.0,86033.0,0.0002113]
[1742435858505,1.0802074,86034.0,86033.0,0.0002113]
[1742435858705,1.0842074,86034.0,86033.0,0.0002113]
[1742435859609,1.07538704,86034.0,86033.0,0.0002113]
[1742435860415,0.74463204,86034.0,86033.0,0.0002113]
[1742435860628,0.87779204,86034.0,86033.0,0.0002113]
[1742435862034,0.88941504,86034.0,86033.0,0.0002113]
[1742435873280,0.89441504,86034.0,86033.0,0.0002113]
[1742435873527,0.97571504,86034.0,86033.0,0.0002113]
[1742435874827,0.89441504,86034.0,86033.0,0.0002113]
[1742435875807,0.88941504,86034.0,86033.0,0.0002113]
[1742435879007,0.89441504,86034.0,86033.0,0.0002113]
[1742435880354,0.88941504,86034.0,86033.0,0.0002113]
[1742435881311,0.74171419,86034.0,86033.0,0.0002113]
[1742435881471,0.75625504,86034.0,86033.0,0.0002113]
[1742435881673,0.74171419,86034.0,86033.0,0.0002113]
[1742435882264,0.75625504,86034.0,86033.0,0.0002113]
[1742435883621,0.74463204,86034.0,86033.0,0.0002113]
[1742435887042,0.73009119,86034.0,86033.0,0.0002113]
[1742435887995,0.74463204,86034.0,86033.0,0.0002113]
[1742435889176,0.43009119,86034.0,86033.0,0.0812113]
[1742435889384,0.02149119,86034.0,86033.0,0.1307113]
[1742435890209,0.01749119,86034.0,86033.0,0.1307113]
[1742435890395,0.02049119,86034.0,86033.0,0.1307113]
[1742435890960,0.02249119,86034.0,86033.0,0.1307113]
[1742435891160,0.01949119,86034.0,86033.0,0.1307113]
[1742435891555,0.02049119,86034.0,86033.0,0.1307113]
[1742435891984,0.01949119,86034.0,86033.0,0.1307113]
[1742435900808,0.01449119,86034.0,86033.0,0.1307113]
[1742435901200,0.002,86034.0,86033.0,0.1307113]
[1742435901875,0.002,86034.0,86033.0,0.0497113]
[1742435902076,0.002,86034.0,86033.0,0.0002113]
[1742435903014,0.0028969,86034.0,86033.0,0.0002113]
[1742435903174,0.01698856,86034.0,86033.0,0.0002113]
[1742435911636,0.01609166,86034.0,86033.0,0.0002113]
[1742435920005,0.01609166,86034.0,86033.0,0.0808113]
[1742435922200,0.01609166,86034.0,86033.0,0.3252093]
[1742435922421,0.002,86034.0,86033.0,0.3252093]
[1742435923575,0.002,86034.0,86033.0,0.44478433]
[1742435923994,0.07395858,86060.0,86053.0,0.185931]
[1742435924195,0.01398431,86058.0,86054.0,0.25698]
[1742435924395,0.0003392,86058.0,86054.0,0.25598]
[1742435925750,0.01946696,86058.0,86054.0,0.25598]
[1742435926079,0.01946696,86058.0,86054.0,0.13208]
[1742435926681,0.02446696,86058.0,86054.0,0.13208]
[1742435926805,0.0008969,86057.0,86054.0,0.13208]
[1742435927005,0.02446696,86058.0,86054.0,0.13208]
[1742435927198,0.0008969,86057.0,86054.0,0.13208]
[1742435928031,0.0058969,86057.0,86054.0,0.13208]
[1742435928906,0.0108969,86057.0,86054.0,0.13208]
[1742435931438,0.1968209,86057.0,86047.0,0.0785]
[1742435931638,0.1968209,86057.0,86046.0,0.046]
[1742435931639,0.185937,86051.0,86046.0,0.13304]
[1742435931849,0.0008969,86050.0,86044.0,0.13304]
[1742435932815,0.0048969,86051.0,86044.0,0.13304]
[1742435933717,0.0048969,86051.0,86042.0,0.0756]
[1742435933903,0.0048969,86051.0,86041.0,0.13304]
[1742435934288,0.003,86050.0,86041.0,0.13304]
[1742435934487,0.0008969,86049.0,86044.0,0.0001696]
[1742435935678,0.0048969,86049.0,86044.0,0.0001696]
[1742435936850,0.0068969,86049.0,86044.0,0.0001696]
[1742435938189,0.006,86049.0,86044.0,0.0001696]
[1742435940437,0.0008969,86048.0,86044.0,0.0001696]
[1742435940692,0.1984619,86048.0,86044.0,0.0001696]
[1742435940895,0.185947,86046.0,86044.0,0.0001696]
[1742435941073,0.0125179,86045.0,86044.0,0.0001696]
[1742435941582,0.02705875,86045.0,86044.0,0.0001696]
[1742435942711,0.33005875,86045.0,86044.0,0.0001696]
[1742435942908,0.32916185,86045.0,86044.0,0.0001696]
[1742435943569,0.33016185,86045.0,86044.0,0.0001696]
[1742435943914,0.73876185,86045.0,86044.0,0.0001696]
[1742435944192,0.86966185,86045.0,86044.0,0.0001696]
[1742435944413,0.87166185,86045.0,86044.0,0.0001696]
[1742435944597,0.86866185,86045.0,86044.0,0.0001696]
[1742435944820,0.87166185,86045.0,86044.0,0.0001696]
[1742435944997,1.45518185,86045.0,86044.0,0.0001696]
[1742435945293,1.45218185,86045.0,86044.0,0.0001696]
[1742435945498,1.45718185,86045.0,86044.0,0.0001696]
[1742435945695,1.45518185,86045.0,86044.0,0.0001696]
[1742435946061,1.46018185,86045.0,86044.0,0.0001696]
[1742435946602,1.45518185,86045.0,86044.0,0.0001696]
[1742435946761,1.46018185,86045.0,86044.0,0.0001696]
[1742435947174,1.48401758,86045.0,86044.0,0.0001696]
[1742435947473,1.47901758,86045.0,86044.0,0.0001696]
[1742435947676,1.47401758,86045.0,86044.0,0.0001696]
[1742435947855,1.47901758,86045.0,86044.0,0.0001696]
[1742435948256,1.45518185,86045.0,86044.0,0.0001696]
[1742435949312,1.46018185,86045.0,86044.0,0.0001696]
[1742435949511,0.497595,86034.0,86033.0,0.0002113]
[1742435949721,1.05356625,86034.0,86033.0,0.0002113]
[1742435950775,1.05656625,86034.0,86033.0,0.0002113]
[1742435951272,1.06522725,86034.0,86033.0,0.0002113]
[1742435953974,0.9176864,86034.0,86033.0,0.0002113]
[1742435954373,0.93222725,86034.0,86033.0,0.0002113]
[1742435958268,0.92922725,86034.0,86033.0,0.0002113]
[1742435958462,0.92522725,86034.0,86033.0,0.0002113]
[1742435958686,0.93522725,86034.0,86033.0,0.0002113]
[1742435965899,0.74925525,86034.0,86033.0,0.0002113]
[1742435968624,0.4230914,86034.0,86033.0,0.0482113]
[1742435968830,0.4184304,86034.0,86033.0,0.1314113]
[1742435970828,0.4134304,86034.0,86033.0,0.1314113]
[1742435971244,0.4124304,86034.0,86033.0,0.1314113]
[1742435971646,0.4154304,86034.0,86033.0,0.1314113]
[1742435972565,0.7154304,86034.0,86033.0,0.0482113]
[1742435973834,0.7154304,86034.0,86033.0,0.0002113]
[1742435975719,0.3,86033.0,86027.0,0.05687782]
[1742435975921,0.0008969,86032.0,86027.0,0.05692642]
[1742435977933,0.0068969,86032.0,86027.0,0.05692642]
[1742435978983,0.0068969,86032.0,86027.0,4.86e-05]
[1742435979684,0.497609,86028.0,86027.0,4.86e-05]
[1742435980242,0.3,86028.0,86027.0,4.86e-05]
[1742435980963,0.301,86028.0,86027.0,4.86e-05]
[1742435982407,0.304,86028.0,86027.0,4.86e-05]
[1742435982586,0.304,86028.0,86027.0,0.0776181]
[1742435983526,0.304,86028.0,86027.0,0.1250181]
[1742435983527,0.004,86028.0,86027.0,0.1250181]
[1742435983798,0.004,86028.0,86027.0,0.1366421]
[1742435985797,0.004,86028.0,86027.0,0.13780438]
[1742435986653,0.003,86028.0,86027.0,0.13780438]
[1742435987639,0.3,86041.0,86029.0,0.011623]
[1742435987808,0.0003392,86044.0,86030.0,0.00116223]
[1742435988217,0.0003392,86044.0,86030.0,0.01278523]
[1742435989402,0.0043392,86044.0,86033.0,0.185973]
[1742435989550,0.0043392,86044.0,86035.0,0.0806]
[1742435989748,0.0043392,86044.0,86042.0,0.185955]
[1742435989955,0.0043392,86044.0,86043.0,0.137922]
[1742435990357,0.0043392,86044.0,86043.0,0.135922]
[1742435990768,0.0003392,86044.0,86043.0,0.135922]
[1742435991362,0.0043392,86044.0,86043.0,0.13708405]
[1742435991572,0.0003392,86044.0,86043.0,0.13708405]
[1742435991986,0.0013392,86044.0,86043.0,0.13708405]
[1742435994240,0.0013392,86044.0,86043.0,0.135922]
[1742435996645,0.0013392,86044.0,86043.0,0.087958]
[1742435997161,0.0013392,86044.0,86043.0,0.09958]
[1742435997343,0.0013392,86044.0,86043.0,0.10074194]
[1742435998725,0.0013392,86044.0,86043.0,0.09958]
[1742435998932,0.0013392,86044.0,86043.0,0.10074195]
[1742435999444,0.0013392,86044.0,86043.0,0.09958]
[1742436000426,0.0013392,86044.0,86043.0,0.087958]
[1742436000427,0.0008592,86044.0,86043.0,0.087958]
[1742436000616,0.0008592,86044.0,86043.0,0.0457]
[1742436000980,0.0008592,86044.0,86043.0,0.057322]
[1742436001335,0.0008592,86044.0,86043.0,0.1381841]
[1742436003314,0.0008592,86044.0,86043.0,0.137022]
[1742436003515,0.0008592,86044.0,86043.0,0.13818397]
[1742436003778,0.0008592,86044.0,86043.0,0.137022]
[1742436004731,0.0008592,86044.0,86043.0,0.13818397]
[1742436005544,0.0008592,86044.0,86043.0,0.257759]
[1742436005742,0.0008592,86044.0,86043.0,0.25659703]
[1742436007122,0.0011982,86044.0,86043.0,0.25676653]
[1742436007680,0.000339,86044.0,86043.0,0.25676653]
[1742436007884,0.000339,86044.0,86043.0,0.25876653]
[1742436009534,1e-06,86044.0,86043.0,0.25876653]
[1742436009738,1e-06,86044.0,86043.0,0.55876653]
[1742436011680,1e-06,86044.0,86043.0,0.57830738]
[1742436012039,1e-06,86044.0,86043.0,0.55876653]
[1742436013502,1e-06,86044.0,86043.0,0.69160653]
[1742436013852,1e-06,86044.0,86043.0,0.39160653]
[1742436016054,1e-06,86044.0,86043.0,0.71114738]
[1742436016418,0.0003392,86054.0,86053.0,0.623851]
[1742436016616,0.0003392,86054.0,86053.0,0.74342603]
[1742436018132,0.0003392,86054.0,86053.0,0.74889809]
[1742436018340,0.0003392,86054.0,86053.0,0.74989809]
[1742436018947,0.0003392,86054.0,86053.0,0.75289809]
[1742436019525,2e-07,86054.0,86053.0,0.75289809]
[1742436020047,2e-07,86054.0,86053.0,0.77243894]
[1742436020655,2e-07,86054.0,86053.0,1.18733894]
[1742436021199,2e-07,86054.0,86053.0,1.21040622]
[1742436021851,4e-07,86058.0,86057.0,0.502543]
[1742436022020,4e-07,86058.0,86057.0,0.89419888]
[1742436022219,4e-07,86058.0,86057.0,0.89952266]
[1742436022627,4e-07,86058.0,86057.0,0.74714181]
[1742436022983,4e-07,86058.0,86057.0,0.87994181]
[1742436023206,4e-07,86058.0,86057.0,0.88094181]
[1742436023406,4e-07,86058.0,86057.0,0.20386678]
[1742436023610,4e-07,86058.0,86057.0,0.33782853]
[1742436023790,4e-07,86058.0,86057.0,0.33666678]
[1742436024029,4e-07,86058.0,86057.0,0.20386678]
[1742436024243,4e-07,86058.0,86057.0,0.33666678]
[1742436024444,4e-07,86058.0,86057.0,0.15074378]
[1742436024571,4e-07,86058.0,86057.0,0.33666678]
[1742436024775,4e-07,86058.0,86057.0,0.13812378]
[1742436024975,4e-07,86058.0,86057.0,0.14974378]
[1742436025199,4e-07,86058.0,86057.0,0.15174378]
[1742436025779,4e-07,86058.0,86057.0,0.14412378]
[1742436026754,4e-07,86058.0,86057.0,0.14012378]
[1742436026956,4e-07,86058.0,86057.0,0.00732378]
[1742436027170,4e-07,86058.0,86057.0,0.33766678]
[1742436027483,4e-07,86058.0,86057.0,0.33566678]
[1742436027615,4e-07,86058.0,86057.0,0.33766678]
[1742436028015,4e-07,86058.0,86057.0,0.34166678]
[1742436028217,4e-07,86058.0,86057.0,0.14412378]
[1742436028824,4e-07,86058.0,86057.0,0.33766678]
[1742436029039,4e-07,86058.0,86057.0,0.33566678]
[1742436029243,4e-07,86058.0,86057.0,0.34166678]
[1742436029688,4e-07,86058.0,86057.0,0.33766678]
[1742436030656,4e-07,86058.0,86057.0,0.13812378]
[1742436031101,4e-07,86058.0,86057.0,0.33004678]
[1742436031458,4e-07,86058.0,86057.0,0.01132378]
[1742436031672,4e-07,86058.0,86057.0,0.00732378]
[1742436031858,4e-07,86058.0,86057.0,0.00532378]
[1742436032059,4e-07,86058.0,86057.0,0.00932378]
[1742436032483,4e-07,86058.0,86057.0,0.00532378]
[1742436032698,0.0759004,86058.0,86057.0,0.00732378]
[1742436032894,0.0759004,86058.0,86057.0,0.002]
[1742436033092,0.0759004,86058.0,86057.0,0.00742348]
[1742436033357,0.0759004,86058.0,86057.0,0.002]
[1742436033667,0.0759004,86058.0,86057.0,0.00742348]
[1742436034118,4e-07,86058.0,86057.0,0.20496648]
[1742436034277,4e-07,86058.0,86057.0,0.20612836]
[1742436034456,0.112661,86080.0,86067.0,0.197517]
[1742436034657,0.3,86079.0,86069.0,0.197514]
[1742436034842,0.3,86079.0,86069.0,0.011618]
[1742436035036,0.3,86079.0,86070.0,0.19133396]
[1742436035243,0.3,86079.0,86072.0,0.18589]
[1742436035649,6.798e-05,86080.0,86073.0,0.0024409]
[1742436035854,6.798e-05,86080.0,86073.0,0.185887]
[1742436036112,6.798e-05,86080.0,86074.0,0.185884]
[1742436036408,0.005,86079.0,86074.0,0.185884]
[1742436036609,0.005,86079.0,86075.0,0.18704363]
[1742436037248,0.005,86079.0,86077.0,0.185879]
[1742436037511,0.005,86079.0,86076.0,0.185882]
[1742436037704,6.798e-05,86080.0,86076.0,0.185881]
[1742436038079,0.00506798,86080.0,86078.0,0.185875]
[1742436038286,0.004,86079.0,86078.0,0.197492]
[1742436038490,0.004,86079.0,86077.0,0.185878]
[1742436038697,0.005,86079.0,86071.0,0.185891]
[1742436038910,0.005,86079.0,86072.0,0.185888]
[1742436039114,0.005,86079.0,86076.0,0.185882]
[1742436039309,0.005,86079.0,86074.0,0.185885]
[1742436039470,0.00706798,86080.0,86074.0,0.197502]
[1742436039471,0.00306798,86080.0,86074.0,0.197502]
[1742436039888,0.00306798,86080.0,86076.0,0.185882]
[1742436040303,0.00306798,86080.0,86074.0,0.185884]
[1742436040485,6.798e-05,86080.0,86076.0,0.185881]
[1742436040700,6.798e-05,86080.0,86072.0,0.185888]
[1742436040904,6.798e-05,86080.0,86072.0,0.011618]
[1742436041161,6.798e-05,86080.0,86070.0,0.011618]
[1742436041422,0.002,86079.0,86075.0,0.185882]
[1742436041595,6.798e-05,86080.0,86076.0,0.00116171]
[1742436041808,6.798e-05,86080.0,86075.0,0.185883]
[1742436042007,0.00206798,86080.0,86073.0,0.185888]
[1742436042215,6.798e-05,86080.0,86074.0,0.011617]
[1742436042677,6.798e-05,86080.0,86076.0,0.18588]
[1742436042678,0.00206798,86080.0,86076.0,0.18588]
[1742436042871,6.798e-05,86080.0,86074.0,0.011617]
[1742436043077,6.798e-05,86080.0,86078.0,0.185875]
[1742436043315,6.798e-05,86080.0,86072.0,0.18589]
[1742436043514,0.0001695,86079.0,86074.0,0.185884]
[1742436043691,0.0001695,86079.0,86075.0,0.185882]
[1742436043899,0.0001695,86079.0,86074.0,0.011617]
[1742436044102,0.0001695,86079.0,86074.0,0.185885]
[1742436044475,0.0001695,86079.0,86075.0,0.185882]
[1742436044676,0.0001695,86079.0,86074.0,0.185885]
[1742436045032,0.0755,86078.0,86072.0,0.13276]
[1742436046648,0.0755,86078.0,86068.0,0.13276]
[1742436046649,0.185893,86071.0,86068.0,0.13276]
[1742436046825,0.1867899,86071.0,86060.0,0.13276]
[1742436047193,0.112661,86070.0,86060.0,0.13276]
[1742436047357,0.185897,86069.0,86060.0,0.13276]
[1742436047515,0.0008969,86068.0,86060.0,0.13276]
[1742436047711,0.0008969,86069.0,86060.0,0.13276]
[1742436047931,0.0008969,86069.0,86059.0,0.01087689]
[1742436047932,0.094618,86068.0,86059.0,0.01087689]
[1742436048137,0.14332,86058.0,86057.0,0.000339]
[1742436048356,0.15875775,86058.0,86057.0,0.000339]
[1742436049755,0.14713775,86058.0,86057.0,0.000339]
[1742436049939,0.14624085,86058.0,86057.0,0.000339]
[1742436050128,0.15786085,86058.0,86057.0,0.000339]
[1742436050268,0.15786085,86058.0,86057.0,0.002339]
[1742436050475,0.15875775,86058.0,86057.0,0.002339]
[1742436050742,0.86718815,86058.0,86057.0,0.002339]
[1742436050888,0.86629125,86058.0,86057.0,0.000339]
[1742436051093,0.86729125,86058.0,86057.0,0.000339]
[1742436051302,0.86829125,86058.0,86057.0,0.000339]
[1742436051732,0.87229125,86058.0,86057.0,0.000339]
[1742436051943,0.87129125,86058.0,86057.0,0.000339]
[1742436052111,0.88129125,86058.0,86057.0,0.000339]
[1742436054026,0.58791285,86044.0,86027.0,0.0001695]
[1742436054246,0.99600425,86044.0,86027.0,0.0001695]
[1742436054455,0.99600425,86044.0,86027.0,0.1861565]
[1742436055135,0.9698424,86044.0,86027.0,0.0001695]
[1742436055362,0.7858914,86044.0,86035.0,0.011623]
[1742436055612,0.79907734,86044.0,86034.0,0.185972]
[1742436055885,0.79907734,86044.0,86032.0,0.011623]
[1742436055886,0.72327734,86044.0,86032.0,0.185977]
[1742436056131,0.31518594,86044.0,86032.0,0.185977]
[1742436056351,0.32680694,86044.0,86027.0,0.0001695]
[1742436056583,0.34234779,86044.0,86027.0,0.0001695]
[1742436058541,0.87523919,86044.0,86027.0,0.0001695]
[1742436059723,0.87723919,86044.0,86027.0,0.0001695]
[1742436059896,0.87223919,86044.0,86027.0,0.0001695]
[1742436060128,0.88023919,86044.0,86027.0,0.0001695]
[1742436060369,1.01303919,86044.0,86027.0,0.0001695]
[1742436061541,0.88023919,86044.0,86027.0,0.0001695]
[1742436061917,0.88023919,86044.0,86028.0,0.185984]
[1742436061918,0.81889834,86044.0,86028.0,0.185984]
[1742436062338,0.81889834,86044.0,86027.0,0.0001695]
[1742436062668,0.83343919,86044.0,86027.0,0.0001695]
[1742436063092,0.88703919,86044.0,86027.0,0.0001695]
[1742436063861,0.011624,86024.0,86016.0,0.0547085]
[1742436064055,0.011624,86025.0,86016.0,0.0547571]
[1742436064282,0.0008969,86024.0,86016.0,0.0547571]
[1742436064775,0.112661,86026.0,86016.0,0.0547571]
[1742436065254,0.112661,86026.0,86016.0,0.0567571]
[1742436066229,0.112661,86026.0,86017.0,0.00513904]
[1742436066635,0.3,86029.0,86024.0,0.185992]
[1742436066882,0.3,86029.0,86025.0,0.1913361]
[1742436067439,0.112661,86030.0,86027.0,0.185987]
[1742436067695,0.5207524,86040.0,86028.0,0.00534603]
[1742436067895,0.3008969,86039.0,86028.0,0.00534603]
[1742436068068,0.185964,86038.0,86028.0,0.00534603]
[1742436068272,0.0008969,86037.0,86027.0,0.0489]
[1742436068471,0.0008969,86037.0,86029.0,0.00534601]
[1742436068678,0.0008969,86037.0,86027.0,0.0489]
[1742436068919,0.0008969,86037.0,86030.0,0.00534599]
[1742436069097,0.0008969,86037.0,86027.0,0.0489]